[Event "CCT Chessable Masters Play-In 2025"]
[Site "Online"]
[Date "2025.02.17"]
[Round "5.57"]
[White "Nesterov, Arseniy"]
[Black "Matinian, Nikita"]
[Result "0-1"]
[ECO "E16"]
[WhiteElo "2591"]
[BlackElo "2415"]
[PlyCount "160"]
[EventDate "2025.02.13"]
[EventType "swiss"]
[EventCountry "NET"]
[TimeControl "600"]
[WhiteClock "0:00:04"]
[BlackClock "0:00:27"]

1. d4 {[%emt 0:00:01]} Nf6 {[%emt 0:00:02]} 2. c4 {[%emt 0:00:00]} e6 {[%emt 0:00:00]} 3. Nf3 {[%emt 0:00:01]} b6 {[%emt 0:00:01]} 4. g3 {[%emt 0:00:06]} Bb7 {[%emt 0:00:01]} 5. Bg2 {[%emt 0:00:01]} Bb4+ {[%emt 0:00:02]} 6. Nbd2 {[%emt 0:00:08]} O-O {[%emt 0:00:01]} 7. O-O {[%emt 0:00:01]} c5 {[%emt 0:00:14]} 8. a3 {[%emt 0:00:30]} Bxd2 {[%emt 0:00:02]} 9. Qxd2 {[%emt 0:00:00]} cxd4 {[%emt 0:00:02]} 10. Qxd4 {[%emt 0:00:00]} Nc6 {[%emt 0:00:03]} 11. Qf4 {[%emt 0:00:03]} Na5 {[%emt 0:00:41]} 12. Bd2 {[%emt 0:00:31]} Nb3 {[%emt 0:00:06]} 13. Rad1 {[%emt 0:00:01]} Nxd2 {[%emt 0:00:02]} 14. Rxd2 {[%emt 0:00:04]} Rc8 {[%emt 0:00:00]} 15. Rfd1 {[%emt 0:00:11]} Qc7 {[%emt 0:00:11]} 16. Qxc7 {[%emt 0:00:52]} Rxc7 {[%emt 0:00:00]} 17. Ne5 {[%emt 0:00:01]} Bxg2 {[%emt 0:00:07]} 18. Kxg2 {[%emt 0:00:01]} d5 {[%emt 0:00:09]} 19. cxd5 {[%emt 0:00:19]} Nxd5 {[%emt 0:00:00]} 20. e4 {[%emt 0:00:01]} Nf6 {[%emt 0:00:01]} 21. f3 {[%emt 0:00:09]} g6 {[%emt 0:00:13]} 22. g4 {[%emt 0:00:08]} Kg7 {[%emt 0:00:09]} 23. h4 {[%emt 0:00:39]} Rfc8 {[%emt 0:00:02]} 24. b4 {[%emt 0:00:18]} h6 {[%emt 0:00:03]} 25. Kg3 {[%emt 0:00:06]} Rc3 {[%emt 0:00:06]} 26. Rd3 {[%emt 0:00:01]} Rxd3 {[%emt 0:00:07]} 27. Rxd3 {[%emt 0:00:00]} Rc1 {[%emt 0:00:01]} 28. Rd8 {[%emt 0:00:07]} Rc3 {[%emt 0:00:03]} 29. Kf4 {[%emt 0:00:22]} Rxa3 {[%emt 0:00:07]} 30. Rc8 {[%emt 0:00:15]} g5+ {[%emt 0:00:49]} 31. hxg5 {[%emt 0:00:04]} hxg5+ {[%emt 0:00:00]} 32. Kxg5 {[%emt 0:00:03]} Nh7+ {[%emt 0:00:11]} 33. Kf4 {[%emt 0:00:02]} Nf8 {[%emt 0:00:01]} 34. Kg3 {[%emt 0:01:35]} Ng6 {[%emt 0:00:14]} 35. Nd7 {[%emt 0:00:02]} Rd3 {[%emt 0:00:09]} 36. Rc7 {[%emt 0:00:01]} Rb3 {[%emt 0:00:24]} 37. Rxa7 {[%emt 0:00:12]} Rxb4 {[%emt 0:00:01]} 38. Rb7 {[%emt 0:00:01]} b5 {[%emt 0:00:02]} 39. g5 {[%emt 0:00:33]} Rb1 {[%emt 0:00:04]} 40. Nc5 {[%emt 0:00:01]} Kg8 {[%emt 0:00:13]} 41. f4 {[%emt 0:00:45]} b4 {[%emt 0:00:37]} 42. Nd7 {[%emt 0:00:29]} b3 {[%emt 0:00:42]} 43. Rb8+ {[%emt 0:00:16]} Kg7 {[%emt 0:00:01]} 44. f5 {[%emt 0:00:04]} b2 {[%emt 0:00:25]} 45. Kh2 {[%emt 0:00:05]} exf5 {[%emt 0:00:20]} 46. exf5 {[%emt 0:00:00]} Nh4 {[%emt 0:00:08]} 47. Ne5 {[%emt 0:00:12]} Re1 {[%emt 0:00:33]} 48. Rxb2 {[%emt 0:00:14]} Rxe5 {[%emt 0:00:03]} 49. g6 {[%emt 0:00:00]} fxg6 {[%emt 0:00:30]} 50. fxg6 {[%emt 0:00:00]} Kxg6 {[%emt 0:00:01]} 51. Rb6+ {[%emt 0:00:01]} Kg5 {[%emt 0:00:02]} 52. Rb3 {[%emt 0:00:00]} Re4 {[%emt 0:00:04]} 53. Rb5+ {[%emt 0:00:02]} Kg4 {[%emt 0:00:01]} 54. Rb2 {[%emt 0:00:00]} Ng6 {[%emt 0:00:11]} 55. Rg2+ {[%emt 0:00:02]} Kf5 {[%emt 0:00:02]} 56. Kg3 {[%emt 0:00:00]} Re3+ {[%emt 0:00:06]} 57. Kf2 {[%emt 0:00:01]} Rb3 {[%emt 0:00:03]} 58. Rg3 {[%emt 0:00:00]} Rb2+ {[%emt 0:00:01]} 59. Ke3 {[%emt 0:00:01]} Nf4 {[%emt 0:00:02]} 60. Rg8 {[%emt 0:00:00]} Ke5 {[%emt 0:00:05]} 61. Rg5+ {[%emt 0:00:02]} Kf6 {[%emt 0:00:01]} 62. Ra5 {[%emt 0:00:01]} Ng6 {[%emt 0:00:07]} 63. Ra6+ {[%emt 0:00:01]} Kf5 {[%emt 0:00:00]} 64. Ra5+ {[%emt 0:00:00]} Ne5 {[%emt 0:00:01]} 65. Kd4 {[%emt 0:00:00]} Rb4+ {[%emt 0:00:01]} 66. Kc3 {[%emt 0:00:00]} Rc4+ {[%emt 0:00:03]} 67. Kb3 {[%emt 0:00:01]} Rd4 {[%emt 0:00:02]} 68. Rb5 {[%emt 0:00:00]} Rd1 {[%emt 0:00:05]} 69. Kc2 {[%emt 0:00:01]} Rd6 {[%emt 0:00:02]} 70. Rb3 {[%emt 0:00:01]} Ke4 {[%emt 0:00:01]} 71. Rb4+ {[%emt 0:00:00]} Ke3 {[%emt 0:00:01]} 72. Rb3+ {[%emt 0:00:00]} Nd3 {[%emt 0:00:01]} 73. Rc3 {[%emt 0:00:00]} Ke2 {[%emt 0:00:03]} 74. Rc4 {[%emt 0:00:02]} Ra6 {[%emt 0:00:14]} 75. Re4+ {[%emt 0:00:01]} Kf3 {[%emt 0:00:01]} 76. Rd4 {[%emt 0:00:00]} Nc5 {[%emt 0:00:05]} 77. Kc3 {[%emt 0:00:00]} Ne4+ {[%emt 0:00:01]} 78. Kd3 {[%emt 0:00:01]} Ra3+ {[%emt 0:00:01]} 79. Kc4 {[%emt 0:00:00]} Ke3 {[%emt 0:00:01]} 80. Kd5 {[%emt 0:00:02]} Ra5+ {[%emt 0:00:01]} 0-1

[Event "CCT Chessable Masters Play-In 2025"]
[Site "Online"]
[Date "2025.02.17"]
[Round "5.58"]
[White "Zhu, Jiner"]
[Black "Nasuta, Grzegorz"]
[Result "1-0"]
[ECO "C78"]
[WhiteElo "2514"]
[BlackElo "2506"]
[PlyCount "111"]
[EventDate "2025.02.13"]
[EventType "swiss"]
[EventCountry "NET"]
[TimeControl "600"]
[WhiteClock "0:01:31"]

1. e4 {[%emt 0:00:01]} e5 {[%emt 0:00:02]} 2. Nf3 {[%emt 0:00:01]} Nc6 {[%emt 0:00:01]} 3. Bb5 {[%emt 0:00:01]} a6 {[%emt 0:00:01]} 4. Ba4 {[%emt 0:00:00]} Nf6 {[%emt 0:00:02]} 5. O-O {[%emt 0:00:01]} b5 {[%emt 0:00:00]} 6. Bb3 {[%emt 0:00:01]} Bc5 {[%emt 0:00:01]} 7. c3 {[%emt 0:00:07]} d6 {[%emt 0:00:01]} 8. d4 {[%emt 0:00:03]} Bb6 {[%emt 0:00:01]} 9. a4 {[%emt 0:00:01]} Rb8 {[%emt 0:00:01]} 10. a5 {[%emt 0:00:03]} Ba7 {[%emt 0:00:01]} 11. h3 {[%emt 0:00:07]} Bb7 {[%emt 0:00:01]} 12. Be3 {[%emt 0:00:21]} Nxe4 {[%emt 0:00:02]} 13. Re1 {[%emt 0:00:02]} exd4 {[%emt 0:00:02]} 14. cxd4 {[%emt 0:00:02]} d5 {[%emt 0:00:01]} 15. Nc3 {[%emt 0:00:08]} Ne7 {[%emt 0:00:01]} 16. Nxe4 {[%emt 0:00:35]} dxe4 {[%emt 0:00:01]} 17. Ng5 {[%emt 0:00:01]} Bd5 {[%emt 0:00:08]} 18. Nxe4 {[%emt 0:00:09]} O-O {[%emt 0:00:02]} 19. Bc2 {[%emt 0:00:10]} Bxe4 {[%emt 0:01:05]} 20. Bxe4 {[%emt 0:00:02]} Nd5 {[%emt 0:00:05]} 21. Rc1 {[%emt 0:01:29]} Nxe3 {[%emt 0:00:07]} 22. fxe3 {[%emt 0:00:01]} c5 {[%emt 0:00:05]} 23. dxc5 {[%emt 0:00:01]} Qxa5 {[%emt 0:00:01]} 24. c6 {[%emt 0:00:17]} Rbc8 {[%emt 0:00:49]} 25. Qf3 {[%emt 0:00:13]} Qb4 {[%emt 0:00:53]} 26. Re2 {[%emt 0:00:08]} Bb6 {[%emt 0:00:11]} 27. Bf5 {[%emt 0:00:19]} Rc7 {[%emt 0:00:21]} 28. Kh1 {[%emt 0:00:05]} Re7 {[%emt 0:00:12]} 29. Rd1 {[%emt 0:00:25]} g6 {[%emt 0:00:19]} 30. Bd7 {[%emt 0:00:05]} Bc7 {[%emt 0:00:13]} 31. e4 {[%emt 0:00:02]} Qc5 {[%emt 0:00:27]} 32. Qf6 {[%emt 0:00:19]} a5 {[%emt 0:00:38]} 33. g4 {[%emt 0:00:33]} Be5 {[%emt 0:00:11]} 34. Qf3 {[%emt 0:00:02]} a4 {[%emt 0:00:03]} 35. Qd3 {[%emt 0:00:35]} b4 {[%emt 0:00:11]} 36. Rc2 {[%emt 0:00:05]} Qb6 {[%emt 0:00:03]} 37. Kg2 {[%emt 0:00:38]} Ra8 {[%emt 0:00:04]} 38. Qc4 {[%emt 0:00:03]} b3 {[%emt 0:01:00]} 39. Rf2 {[%emt 0:00:01]} a3 {[%emt 0:00:04]} 40. bxa3 {[%emt 0:00:25]} b2 {[%emt 0:00:02]} 41. Qb4 {[%emt 0:00:03]} Qxb4 {[%emt 0:01:02]} 42. axb4 {[%emt 0:00:00]} Rb8 {[%emt 0:00:07]} 43. b5 {[%emt 0:00:01]} Kg7 {[%emt 0:00:25]} 44. Rb1 {[%emt 0:00:07]} Bc7 {[%emt 0:00:35]} 45. Rbxb2 {[%emt 0:00:08]} Rxe4 {[%emt 0:00:01]} 46. Rf3 {[%emt 0:00:05]} Re5 {[%emt 0:00:02]} 47. Rfb3 {[%emt 0:00:03]} Rb6 {[%emt 0:00:00]} 48. Bc8 {[%emt 0:00:02]} Rc5 {[%emt 0:00:02]} 49. Ba6 {[%emt 0:00:01]} h5 {[%emt 0:00:00]} 50. Kf3 {[%emt 0:00:02]} hxg4+ {[%emt 0:00:01]} 51. hxg4 {[%emt 0:00:01]} g5 {[%emt 0:00:01]} 52. Ke4 {[%emt 0:00:07]} Rc4+ {[%emt 0:00:06]} 53. Kd5 {[%emt 0:00:02]} Rxg4 {[%emt 0:00:01]} 54. Re2 {[%emt 0:00:00]} Rf4 {[%emt 0:00:04]} 55. Re7 {[%emt 0:00:03]} Rf5+ 56. Ke4 {[%emt 0:00:02]} 1-0